lending/lending_fUSD_20240816
["ID","MTS","AMOUNT","RATE_DAILY","PERIOD"]
[335048803,1723787451860,-500.0,0.00023835,7]
[335048804,1723787451869,-502.47,0.00023835,7]
[335048805,1723787451879,-500.0,0.00023835,7]
[335048806,1723787451888,-182.93670476,0.00023835,7]
[335048807,1723787451910,-317.06329524,0.00023835,7]
[335048808,1723787451919,-125.7606745,0.00023835,7]
[335048809,1723787451932,-374.2393255,0.00023835,7]
[335048810,1723787451942,-172.9516745,0.00023835,7]
[335048811,1723787451954,-329.5183255,0.00023835,7]
[335048812,1723787451963,-500.0,0.00023835,7]
[335048813,1723787451974,-500.0,0.00023835,7]
[335048814,1723787451984,-502.47,0.00023835,7]
[335048815,1723787451993,-601.0836047,0.00023835,7]
[335048816,1723787452003,-500.0,0.00023835,7]
[335048817,1723787452012,-500.0,0.00023835,7]
[335048818,1723787452022,-500.0,0.00023835,7]
[335048819,1723787452031,-502.47,0.00023835,7]
[335048820,1723787452040,-500.0,0.00023835,7]
[335048821,1723787452050,-500.0,0.00023835,7]
[335048822,1723787452059,-502.47,0.00023835,7]
[335048823,1723787452069,-500.0,0.00023835,7]
[335048824,1723787452078,-500.0,0.00023835,7]
[335048825,1723787452088,-500.0,0.00023835,7]
[335048826,1723787452097,-500.0,0.00023835,7]
[335048827,1723787452106,-151.0,0.00023835,7]
[335048828,1723787452115,-502.47,0.00023835,7]
[335048829,1723787452125,-500.0,0.00023835,7]
[335048830,1723787452134,-500.0,0.00023835,7]
[335048831,1723787452144,-596.87186536,0.00023835,7]
[335048832,1723787452152,-732.23,0.00023835,7]
[335048833,1723787452162,-500.0,0.00023835,7]
[335048834,1723787452171,-502.47,0.00023835,7]
[335048835,1723787452180,-500.0,0.00023835,7]
[335048836,1723787452190,-500.0,0.00023835,7]
[335048837,1723787452199,-732.23,0.00023835,7]
[335048838,1723787452209,-500.0,0.00023835,7]
[335048839,1723787452218,-502.47,0.00023835,7]
[335048840,1723787452228,-500.0,0.00023835,7]
[335048841,1723787452237,-500.0,0.00023835,7]
[335048842,1723787452247,-686.76288771,0.00023835,7]
[335048870,1723788631962,-300.0,0.00010991,2]
[335048871,1723788631972,-785.57086794,0.00010992,2]
[335048872,1723788631987,-25372.51084248,0.00010992,2]
[335048873,1723788631999,-202.96339221,0.00013086,2]
[335048874,1723788632012,-546.9938583,0.00013292,2]
[335048875,1723788632022,-155.0,0.00013292,2]
[335048876,1723788632032,-348.26413265,0.00013391,2]
[335048877,1723788632041,-348.26413265,0.00013391,2]
[335048878,1723788632051,-303.3037382,0.00013687,2]
[335048879,1723788632060,-536.44870464,0.00013861,2]
[335048880,1723788632069,-839.482885,0.00013971,2]
[335048881,1723788632080,-151.23,0.00013973,2]
[335048882,1723788632090,-299.14911154,0.00014245,2]
[335048883,1723788632099,-285.08,0.00014509,2]
[335048884,1723788632109,-531.33260631,0.00014782,2]
[335048885,1723788632118,-212.0,0.00017259,2]
[335048886,1723788632128,-5576.07,0.0001726,2]
[335048887,1723788632137,-311.07,0.00018533,2]
[335048888,1723788632146,-2599.66,0.00019449,2]
[335048889,1723788632155,-1000.0,0.00019526,2]
[335048890,1723788632165,-200.0,0.00019534,2]
[335048891,1723788632174,-150.0,0.00019662,2]
[335048893,1723788632183,-200.0,0.00019727,2]
[335048894,1723788632192,-500.0,0.00019999,2]
[335048895,1723788632201,-500.0,0.00019999,2]
[335048896,1723788632211,-166.89,0.00020423,2]
[335048897,1723788632220,-311.07,0.00020797,2]
[335048898,1723788632230,-1000.0,0.00021348,2]
[335048899,1723788632239,-250.0,0.0002138,2]
[335048900,1723788632249,-3390.03,0.00021501,2]
[335048901,1723788632258,-11925.18659602,0.00021512,2]
[335048902,1723788632277,-957.30298068,0.00021512,2]
[335048903,1723788632291,-499.6,0.00021512,2]
[335048904,1723788632301,-999.9006,0.00021512,2]
[335048905,1723788632313,-1000.3932,0.00021512,2]
[335048906,1723788632324,-544.02,0.00021512,2]
[335048907,1723788632336,-5180.24440452,0.00021512,2]
[335048908,1723788632347,-2793.35221878,0.00021512,2]
[335048909,1723788632357,-250.0,0.00021524,2]
[335048910,1723788632367,-156.18,0.00021789,2]
[335048911,1723788632376,-189.29,0.00021918,2]
[335048912,1723788632386,-150.16,0.00021918,2]
[335048913,1723788632395,-1000.0,0.00021966,2]
[335048914,1723788632405,-174.0,0.00022,2]
[335048915,1723788632415,-500.0,0.00022191,2]
[335048916,1723788632425,-597.21857105,0.00022191,2]
[335048917,1723788632435,-193.3,0.00022822,2]
[335048918,1723788632444,-500.0,0.00022835,2]
[335048919,1723788632454,-500.0,0.00022835,2]
[335048920,1723788632463,-500.0,0.00022835,2]
[335048921,1723788632472,-500.0,0.00022835,2]
[335048922,1723788632481,-601.94,0.00022835,2]
[335048923,1723788632490,-311.07,0.00023061,2]
[335048924,1723788632500,-4203.0,0.000232,2]
[335048925,1723788632509,-150.0,0.0002337,2]
[335048926,1723788632518,-163.75456642,0.00023451,2]
[335048927,1723788632527,-220.4195077,0.00023461,2]
[335048928,1723788632537,-163.75456641,0.00023484,2]
[335048929,1723788632547,-991.0,0.000235,6]
[335048930,1723788632556,-163.75456641,0.00023517,2]
[335048931,1723788632565,-163.75456641,0.0002355,2]
[335048932,1723788632575,-1925.58,0.00023561,7]
[335048933,1723788632584,-500.0,0.00023561,7]
[335048934,1723788632593,-500.0,0.00023561,7]
[335048935,1723788632603,-785.83,0.00023561,7]
[335048936,1723788632612,-500.0,0.00023561,7]
[335048937,1723788632621,-500.0,0.00023561,7]
[335048938,1723788632631,-500.0,0.00023561,7]
[335048939,1723788632639,-125.73817572,0.00023561,7]
[335048940,1723788632667,-600.0,0.00023561,7]
[335048941,1723788632685,-255.97559429,0.00023561,7]
[335048942,1723788632704,-1618.65622999,0.00023561,7]
[335048943,1723788632713,-500.0,0.00023561,7]
[335048944,1723788632723,-740.1,0.00023561,7]
[335048945,1723788632732,-500.0,0.00023561,7]
[335048946,1723788632741,-500.0,0.00023561,7]
[335048947,1723788632750,-500.0,0.00023561,7]
[335048948,1723788632759,-512.64,0.00023561,7]
[335048949,1723788632770,-500.0,0.00023561,7]
[335048950,1723788632780,-1047.33,0.00023561,7]
[335048951,1723788632790,-500.0,0.00023561,7]
[335048952,1723788632800,-500.0,0.00023561,7]
[335048953,1723788632811,-500.0,0.00023561,7]
[335048954,1723788632821,-500.0,0.00023561,7]
[335048955,1723788632831,-2012.24,0.00023561,7]
[335048956,1723788632841,-500.0,0.00023561,7]
[335048957,1723788632850,-1057.24,0.00023561,7]
[335048958,1723788632859,-500.0,0.00023561,7]
[335048959,1723788632868,-500.0,0.00023561,7]
[335048960,1723788632878,-500.0,0.00023561,7]
[335048961,1723788632888,-283.10452342,0.00023561,7]
[335048962,1723788632898,-500.0,0.00023561,7]
[335048963,1723788632908,-500.0,0.00023561,7]
[335048964,1723788632917,-2946.67,0.00023561,7]
[335048965,1723788632926,-500.0,0.00023561,7]
[335048966,1723788632935,-500.0,0.00023561,7]
[335048967,1723788632944,-489.86932045,0.00023561,7]
[335048972,1723788638009,-465.70910006,0.00010989,2]
[335048973,1723788638023,-925.30673529,0.00010989,2]
[335048974,1723788638035,-484.5265281,0.00010989,2]
[335048975,1723788638047,-5406.64754168,0.00010989,2]
[335048976,1723788638060,-403.58958393,0.00010989,2]
[335048977,1723788638295,-7240.00000001,0.00010989,2]
[335048978,1723788638306,-607.8,0.00010989,2]
[335048979,1723788638317,-2043.10614724,0.00010989,2]
[335048988,1723788638532,-713.48661338,0.00010989,2]
[335048989,1723788638543,-6062.9094044,0.00010989,2]
[335048990,1723788639217,-1805.00005633,0.00010989,2]
[335048991,1723788639226,-536.44870464,0.00013851,2]
[335048992,1723788639236,-153.69,0.00013973,2]
[335048993,1723788639245,-415.05274519,0.00014517,2]
[335048994,1723788639255,-250.0,0.00019762,2]
[335048995,1723788639265,-1178.72095001,0.00023561,7]
[335048996,1723788639276,-1510.03972954,0.00023561,7]
[335048997,1723788639287,-348.38824446,0.00023561,7]
[335048998,1723788639298,-151.61175554,0.00023561,7]
[335048999,1723788639307,-130.87822446,0.00023561,7]
[335049000,1723788641989,-369.12177554,0.00023561,7]
[335049001,1723788642000,-1685.84349648,0.00023561,7]
[335049002,1723788642016,-504.97319836,0.00023561,7]
[335049003,1723788642058,-154.93330516,0.00023561,7]
[335049004,1723788642068,-500.0,0.00023561,7]
[335049005,1723788642078,-500.0,0.00023561,7]
[335049006,1723788642089,-500.0,0.00023561,7]
[335049007,1723788642100,-81.47975509,0.00023561,7]
[335049008,1723788642126,-418.52024491,0.00023561,7]
[335049009,1723788642136,-500.0,0.00023561,7]
[335049010,1723788642147,-620.7,0.00023561,7]
[335049011,1723788642156,-863.95,0.00023561,7]
[335049012,1723788642166,-2250.8,0.00023561,7]
[335049013,1723788642176,-936.98106854,0.00023561,7]
[335049014,1723788642189,-351.17893146,0.00023561,7]
[335049015,1723788642199,-163.45314632,0.00023561,7]
[335049031,1723788643804,-336.54685368,0.00023561,7]
[335049032,1723788643815,-795.81008202,0.00023561,7]
[335049034,1723788643827,-294.14994472,0.00023561,7]
[335049036,1723788643839,-1848.28689354,0.00023561,7]
[335049038,1723788643850,-681.1126026,0.00023561,7]
[335049040,1723788643861,-220.74047712,0.00023561,7]
[335049042,1723788643870,-55.89876988,0.00023561,7]
[335049056,1723788644749,-444.10123012,0.00023561,7]
[335049057,1723788644758,-500.0,0.00023561,7]
[335049058,1723788644767,-2861.70062939,0.00023561,7]
[335049065,1723788646512,-402.72937061,0.00023561,7]
[335049066,1723788646523,-500.0,0.00023561,7]
[335049067,1723788646532,-812.32,0.00023561,7]
[335049068,1723788646542,-500.0,0.00023561,7]
[335049069,1723788646551,-500.0,0.00023561,7]
[335049070,1723788646560,-1928.50442586,0.00023561,7]
[335049071,1723788646593,-1795.67557414,0.00023561,7]
[335049072,1723788646602,-500.0,0.00023561,7]
[335049073,1723788646615,-500.0,0.00023561,7]
[335049074,1723788646625,-1787.24,0.00023561,7]
[335049075,1723788646636,-500.0,0.00023561,7]
[335049076,1723788646645,-500.0,0.00023561,7]
[335049077,1723788646654,-500.0,0.00023561,7]
[335049078,1723788646663,-500.0,0.00023561,7]
[335049079,1723788646674,-708.52,0.00023561,7]
[335049080,1723788646685,-500.0,0.00023561,7]
[335049081,1723788646695,-1589.26,0.00023561,7]
[335049082,1723788646705,-1051.07,0.00023561,7]
[335049083,1723788646714,-500.0,0.00023561,7]
[335049084,1723788646724,-617.9,0.00023561,7]
[335049085,1723788646734,-583.31,0.00023561,7]
[335049086,1723788646746,-752.43,0.00023561,7]
[335049087,1723788646756,-1179.8,0.00023561,7]
[335049088,1723788646768,-500.0,0.00023561,7]
[335049089,1723788646779,-984.24,0.00023561,7]
[335049090,1723788646790,-500.0,0.00023561,7]
[335049091,1723788646800,-1716.22,0.00023561,7]
[335049092,1723788646810,-500.0,0.00023561,7]
[335049093,1723788646820,-500.0,0.00023561,7]
[335049094,1723788646832,-500.0,0.00023561,7]
[335049095,1723788646842,-500.0,0.00023561,7]
[335049096,1723788646852,-537.01,0.00023561,7]
[335049097,1723788646861,-783.81,0.00023561,7]
[335049098,1723788646870,-706.3,0.00023561,7]
[335049099,1723788646879,-1021.21,0.00023561,7]
[335049100,1723788646888,-500.0,0.00023561,7]
[335049101,1723788646897,-1384.77,0.00023561,7]
[335049102,1723788646906,-500.0,0.00023561,7]
[335049103,1723788646915,-500.0,0.00023561,7]
[335049104,1723788646924,-527.86,0.00023561,7]
[335049105,1723788646933,-988.78,0.00023561,7]
[335049106,1723788646942,-500.0,0.00023561,7]
[335049107,1723788646951,-500.0,0.00023561,7]
[335049108,1723788646960,-1242.83,0.00023561,7]
[335049109,1723788646969,-550.95,0.00023561,7]
[335049110,1723788646978,-500.0,0.00023561,7]
[335049111,1723788646987,-500.0,0.00023561,7]
[335049112,1723788646996,-500.0,0.00023561,7]
[335049113,1723788647007,-500.0,0.00023561,7]
[335049114,1723788647021,-559.12,0.00023561,7]
[335049115,1723788647031,-569.79016093,0.00023561,7]
[335049116,1723788647040,-500.0,0.00023561,7]
[335049117,1723788647049,-1225.39,0.00023561,7]
[335049118,1723788647061,-500.0,0.00023561,7]
[335049119,1723788647071,-500.0,0.00023561,7]
[335049120,1723788647081,-500.0,0.00023561,7]
[335049121,1723788647091,-500.0,0.00023561,7]
[335049122,1723788647100,-532.06,0.00023561,7]
[335049123,1723788647109,-1236.83,0.00023561,7]
[335049124,1723788647118,-802.61,0.00023561,7]
[335049125,1723788647129,-500.0,0.00023561,7]
[335049127,1723788647139,-896.82,0.00023561,7]
[335049128,1723788647149,-599.23,0.00023561,7]
[335049129,1723788647158,-1845.45,0.00023561,7]
[335049130,1723788647167,-570.74,0.00023561,7]
[335049131,1723788647176,-1137.07,0.00023561,7]
[335049132,1723788647186,-518.61,0.00023561,7]
[335049133,1723788647195,-500.0,0.00023561,7]
[335049134,1723788647204,-600.03,0.00023561,7]
[335049135,1723788647213,-539.87,0.00023561,7]
[335049136,1723788647223,-500.0,0.00023561,7]
[335049137,1723788647232,-500.0,0.00023561,7]
[335049138,1723788647242,-869.76,0.00023561,7]
[335049139,1723788647251,-721.84,0.00023561,7]
[335049140,1723788647261,-500.0,0.00023561,7]
[335049141,1723788647271,-872.43,0.00023561,7]
[335049142,1723788647280,-511.98,0.00023561,7]
[335049143,1723788647290,-500.0,0.00023561,7]
[335049144,1723788647299,-657.32,0.00023561,7]
[335049145,1723788647308,-711.04,0.00023561,7]
[335049146,1723788647317,-500.0,0.00023561,7]
[335049147,1723788647327,-500.0,0.00023561,7]
[335049148,1723788647336,-949.08,0.00023561,7]
[335049149,1723788647345,-310.96044211,0.00023561,7]
[335049150,1723788647374,-192.11339559,0.00023561,7]
[335049151,1723788647384,-661.97,0.00023561,7]
[335049152,1723788647394,-5922.58,0.00023561,7]
[335049153,1723788647403,-500.0,0.00023561,7]
[335049154,1723788647413,-5436.39,0.00023561,7]
[335049155,1723788647423,-1733.27,0.00023561,7]
[335049156,1723788647432,-608.19,0.00023561,7]
[335049157,1723788647441,-500.0,0.00023561,7]
[335049158,1723788647450,-500.0,0.00023561,7]
[335049159,1723788647460,-3913.49,0.00023561,7]
[335049160,1723788647469,-5901.24,0.00023561,7]
[335049161,1723788647478,-1780.05,0.00023561,7]
[335049162,1723788647487,-4945.29,0.00023561,7]
[335049163,1723788647496,-1433.1,0.00023561,7]
[335049164,1723788647508,-1227.67,0.00023561,7]
[335049165,1723788647517,-500.0,0.00023561,7]
[335049166,1723788647526,-1405.64,0.00023561,7]
[335049167,1723788647535,-21245.41,0.00023561,7]
[335049168,1723788647547,-6031.18,0.00023561,7]
[335049169,1723788647556,-781.41,0.00023561,7]
[335049170,1723788647565,-500.0,0.00023561,7]
[335049171,1723788647574,-6621.57,0.00023561,7]
[335049172,1723788647582,-500.0,0.00023561,7]
[335049173,1723788647591,-500.0,0.00023561,7]
[335049174,1723788647601,-560.74433513,0.00023561,2]
[335049175,1723788647611,-1169.89,0.00023561,7]
[335049176,1723788647621,-8098.6,0.00023561,7]
[335049177,1723788647631,-500.0,0.00023561,7]
[335049178,1723788647640,-1368.58,0.00023561,7]
[335049179,1723788647651,-1819.6,0.00023561,7]
[335049180,1723788647662,-853.85,0.00023561,7]
[335049181,1723788647671,-500.0,0.00023561,7]
[335049182,1723788647681,-978.24,0.00023561,7]
[335049183,1723788647690,-500.0,0.00023561,7]
[335049184,1723788647700,-2975.69,0.00023561,7]
[335049185,1723788647710,-545.65,0.00023561,7]
[335049186,1723788647718,-500.0,0.00023561,7]
[335049187,1723788647728,-163.75456641,0.00023583,2]
[335049188,1723788647737,-5913.86,0.000236,7]
[335049189,1723788647746,-163.75456641,0.00023615,2]
[335049190,1723788647755,-310.55183727,0.00023624,2]
[335049191,1723788647764,-163.75456641,0.00023648,2]
[335049192,1723788647774,-163.75456641,0.00023681,2]
[335049193,1723788647783,-500.0,0.00023686,2]
[335049194,1723788647794,-198.84979518,0.00023688,2]
[335049195,1723788647803,-215.56710439,0.00023689,2]
[335049196,1723788647813,-500.0,0.00023694,2]
[335049197,1723788647822,-500.0,0.00023703,2]
[335049198,1723788647831,-500.0,0.00023712,2]
[335049199,1723788647840,-500.0,0.00023713,2]
[335049200,1723788647850,-500.0,0.00023713,2]
[335049201,1723788647860,-582.43263977,0.00023713,2]
[335049202,1723788647870,-163.75456641,0.00023714,2]
[335049203,1723788647879,-56159.1731401,0.00023714,3]
[335049204,1723788647888,-154.26,0.00023714,2]
[335049205,1723788647897,-500.0,0.00023721,2]
[335049206,1723788647906,-4908.41,0.00023723,7]
[335049207,1723788647916,-15944.16,0.00023723,7]
[335049208,1723788647926,-9146.29,0.00023723,7]
[335049209,1723788647935,-3156.76,0.00023723,7]
[335049210,1723788647944,-8282.48,0.00023723,7]
[335049211,1723788647954,-4825.78,0.00023723,7]
[335049212,1723788647963,-3055.36,0.00023723,7]
[335049213,1723788647973,-8001.35,0.00023723,7]
[335049214,1723788647982,-7364.54,0.00023723,7]
[335049215,1723788647992,-6939.63,0.00023723,7]
[335049216,1723788648001,-500.0,0.00023723,7]
[335049217,1723788648013,-5581.43,0.00023724,7]
[335049218,1723788648023,-9956.55,0.00023724,7]
[335049219,1723788648033,-3411.05,0.00023724,7]
[335049220,1723788648044,-28691.57,0.00023724,7]
[335049221,1723788648059,-30284.25,0.00023724,7]
[335049222,1723788648068,-6264.41,0.00023724,7]
[335049223,1723788648079,-14290.2,0.00023724,7]
[335049224,1723788648090,-500.0,0.00023724,7]
[335049225,1723788648100,-1160.67,0.00023724,7]
[335049226,1723788648109,-4137.59,0.00023724,7]
[335049227,1723788648119,-7634.79,0.00023724,7]
[335049228,1723788648128,-2184.59,0.00023724,7]
[335049229,1723788648138,-4601.56,0.00023724,7]
[335049230,1723788648147,-15024.61,0.00023724,7]
[335049231,1723788648156,-4630.39,0.00023724,7]
[335049232,1723788648166,-166.31999249,0.00023735,2]
[335049233,1723788648176,-14039.793285,0.00023755,3]
[335049234,1723788648186,-878.0,0.00023765,2]
[335049235,1723788648196,-117487.67254116,0.00023768,3]
[335049236,1723788648212,-3973.8258621,0.00023768,3]
[335049237,1723788648225,-5647.34128312,0.00023768,3]
[335049238,1723788648236,-6722.5665,0.00023768,3]
[335049247,1723788981233,255.7,9.98e-05,2]
[335049248,1723789014782,20233.08838753,9.98e-05,2]
[335049249,1723789025398,478.30913828,9.98e-05,2]
[335049250,1723789070869,368.76,0.00024873,120]
[335049252,1723789179748,10000.0,0.0002203,62]
[335049321,1723789832814,-584.59550704,0.00010989,2]
[335049322,1723789832825,-621.32544341,0.00010989,2]
[335049323,1723789832837,-444.13678058,0.00010989,2]
[335049324,1723789832854,-377.277724,0.00010989,2]
[335049325,1723789832892,-360.35116936,0.00010989,2]
[335049345,1723789838174,-1207.91249778,0.00010989,2]
[335049347,1723789838324,-987.54270914,0.00010989,2]
[335049348,1723789838335,-1238.24170496,0.00010989,2]
[335049349,1723789838347,-529.12011047,0.00010989,2]
[335049350,1723789838358,-14103.48224663,0.00010989,2]
[335049351,1723789838369,-2429.66962333,0.00010989,2]
[335049352,1723789838380,-485.28526725,0.00010989,2]
[335049353,1723789838391,-335.76750053,0.00010989,2]
[335049354,1723789838474,-2453.37342594,0.00010989,2]
[335049355,1723789838484,-163.34208768,0.00010997,2]
[335049356,1723789838493,-150.0,0.00010999,2]
[335049357,1723789838503,-175.82584886,0.00010999,2]
[335049358,1723789838512,-1055.70054237,0.00011,2]
[335049359,1723789838532,-289.84416228,0.00011,2]
[335049361,1723789840507,-863.3110572,0.00011,2]
[335049362,1723789840520,-294.73226851,0.00011,2]
[335049363,1723789840533,-740.07,0.00011,2]
[335049364,1723789840551,-87257.95765878,0.00011,2]
[335049365,1723789840707,-3193.55135642,0.00011,2]
[335049366,1723789840723,-23713.43801055,0.00011,2]
[335049367,1723789840735,-1209.54095137,0.00011,2]
[335049374,1723789843780,-488.32985,0.00011,2]
[335049375,1723789843793,-19799.91356564,0.00011,2]
[335049376,1723789843806,-250.69,0.00011,2]
[335049378,1723789844562,-4290.41672934,0.00011,2]
[335049379,1723789844574,-331.99525071,0.00011,2]
[335049380,1723789844586,-7883.87214371,0.00011,2]
[335049381,1723789844597,-66308.90339499,0.00011,2]
[335049382,1723789844608,-449.242,0.00011,2]
[335049383,1723789844619,-650.0,0.00011,2]
[335049387,1723789846253,-1394.51005659,0.00011,2]
[335049388,1723789846265,-1143.97892178,0.00011,2]
[335049389,1723789846276,-1891.09879631,0.00011,2]
[335049390,1723789846302,-572.85,0.00011,2]
[335049391,1723789846312,-294.09354145,0.00011,2]
[335049392,1723789846323,-2580.28709736,0.00011,2]
[335049393,1723789846334,-3568.141199,0.00011,2]
[335049394,1723789846345,-2522.7804,0.00011,2]
[335049395,1723789846356,-4610.71360311,0.00011,2]
[335049396,1723789846367,-2678.93484286,0.00011,2]
[335049397,1723789846379,-1509.11451349,0.00011,2]
[335049398,1723789846452,-1752.42752178,0.00011,2]
[335049399,1723789846465,-568.8026183,0.00011,2]
[335049400,1723789846480,-269.38241397,0.00011,2]
[335049401,1723789846501,-517.49928082,0.00011,2]
[335049402,1723789846513,-3648.94623122,0.00011,2]
[335049403,1723789846525,-910.07126,0.00011,2]
[335049404,1723789846536,-27466.2388339,0.00011,2]
[335049405,1723789846550,-15183.09361482,0.00011,2]
[335049449,1723790952300,974.89,9.956e-05,2]
[335049455,1723790968808,356.27,8.219e-05,2]
[335049463,1723791033107,-448.12958754,0.0001,2]
[335049464,1723791033119,-101.87041246,0.0001,2]
[335049465,1723791033129,-303.3037382,0.0001,2]
[335049466,1723791033139,-300.0,0.00010008,2]
[335049467,1723791033149,-3351.27867652,0.00010009,2]
[335049468,1723791033329,-765.29022052,0.00010009,2]
[335049497,1723791038446,-12937.58509974,0.00010009,2]
[335049498,1723791038458,-584.113544,0.00010009,2]
[335049499,1723791038543,-2086.2706816,0.00010009,2]
[335049535,1723791040614,-2859.01118111,0.00010009,2]
[335049536,1723791040626,-292.485,0.00010009,2]
[335049537,1723791040638,-3282.04730693,0.00010009,2]
[335049538,1723791040648,-200.0,0.00010023,2]
[335049539,1723791040658,-211.55,0.00010102,2]
[335049540,1723791040667,-18441.5848579,0.00010102,2]
[335049541,1723791040677,-10000.0,0.00010473,2]
[335049542,1723791040687,-356.27,0.00010481,2]
[335049543,1723791040696,-150.0,0.00010585,2]
[335049544,1723791040706,-23900.0,0.00010586,2]
[335049545,1723791040715,-3876.81207198,0.00010699,2]
[335049546,1723791040725,-536.44870464,0.00010713,2]
[335049547,1723791040735,-1300.9168339,0.00010713,2]
[335049548,1723791040744,-1865.54939862,0.00010799,2]
[335049549,1723791040754,-202.96339221,0.00010799,2]
[335049550,1723791040763,-546.9938583,0.00010852,2]
[335049551,1723791040772,-210.2,0.00010861,2]
[335049552,1723791040781,-415.05274519,0.00010861,2]
[335049553,1723791040790,-155.0,0.00010862,2]
[335049554,1723791040799,-150.0,0.00010877,2]
[335049555,1723791040809,-155.20481626,0.0001089,2]
[335049556,1723791040818,-15446.1869,0.000109,2]
[335049557,1723791040827,-183.25177832,0.000109,2]
[335049558,1723791040837,-152.62735722,0.000109,2]
[335049559,1723791040849,-166.08707228,0.000109,2]
[335049560,1723791040859,-1500.0,0.00010959,2]
[335049561,1723791040868,-150.0,0.00010959,2]
[335049562,1723791040877,-250.0,0.00010959,2]
[335049563,1723791040886,-295.01,0.0001097,2]
[335049564,1723791040897,-4140.14452985,0.00010978,2]
[335049565,1723791040906,-9999.99,0.00010989,2]
[335049566,1723791040915,-150.99,0.00010989,2]
[335049567,1723791040926,-2329.54544548,0.00010989,2]
[335049568,1723791040936,-1192.44601834,0.00010993,2]
[335049569,1723791040945,-116649.52921516,0.00011,2]
[335049570,1723791040961,-5917.4292695,0.00011,2]
[335049571,1723791042295,-456.01342041,0.00011,2]
[335049572,1723791042306,-604.46,0.00011,2]
[335049573,1723791042318,-2358.2896275,0.00011,2]
[335049580,1723791043682,-1496.47520999,0.00011,2]
[335049581,1723791043903,-742.5,0.00011,2]
[335049582,1723791043920,-11847.13293886,0.00011,2]
[335049616,1723791047715,-655.56801634,9.999e-05,2]
[335049617,1723791050300,160.61881162,9.923e-05,2]
[335049621,1723791073939,9320.64558111,9.962e-05,2]
[335049622,1723791075520,2084.4542,9.9e-05,2]
[335049623,1723791080689,150.0,8.219e-05,2]
[335049624,1723791080713,641.39791577,8.219e-05,2]
[335049625,1723791080973,202.96339221,9.962e-05,2]
[335049626,1723791082231,278.93147221,9.962e-05,2]
[335049627,1723791088557,536.44870464,9.962e-05,2]
[335049628,1723791088718,546.9938583,9.962e-05,2]
[335049629,1723791141404,26158.08171042,9.943e-05,2]
[335049630,1723791183464,791.39791577,9.962e-05,2]
[335049637,1723791291969,458.78931347,9.962e-05,2]
[335049640,1723791394558,486.80860674,9.962e-05,2]
[335049641,1723791409401,150.0,9.962e-05,2]
[335049642,1723791409425,150.0,9.962e-05,2]
[335049644,1723791572641,150.0,9.926e-05,2]
[335049645,1723791572662,150.0,9.926e-05,2]
[335049646,1723791572682,150.0,9.926e-05,2]
[335049647,1723791572702,150.0,9.926e-05,2]
[335049648,1723791572722,150.0,9.926e-05,2]
[335049649,1723791572743,150.0,9.926e-05,2]
[335049650,1723791572763,150.0,9.926e-05,2]
[335049651,1723791572783,5.99989636,9.926e-05,2]
[335049652,1723791595570,150.0,8.375e-05,2]
[335049653,1723791595590,150.0,8.375e-05,2]
[335049654,1723791595611,93.16,8.375e-05,2]
[335049655,1723791601803,1865.54939862,9.943e-05,2]
[335049656,1723791711429,150.0,9.943e-05,2]
[335049657,1723791711453,5.0,9.943e-05,2]
[335049658,1723791747334,150.0,9.943e-05,2]
[335049659,1723791747356,150.0,9.943e-05,2]